[Event "Early-Titled-Tuesday-Blitz-February-06-2024"]
[Site "Chess.com"]
[Date "2024.02.06"]
[Round "8"]
[White "TokChess"]
[Black "NovakRatko"]
[Result "1-0"]
[WhiteElo "2575"]
[BlackElo "2411"]
[TimeControl "180+1"]
[EndTime "9:28:10 PST"]
[Termination "TokChess won by checkmate"]

1. e4 {[%clk 0:03:00.9]} 1... d5 {[%clk 0:02:52.2]} 2. exd5 {[%clk 0:03:00.4]}
2... c6 {[%clk 0:02:51.9]} 3. Nc3 {[%clk 0:03:01.3]} 3... cxd5 {[%clk
0:02:51.6]} 4. d4 {[%clk 0:03:01.7]} 4... Nc6 {[%clk 0:02:52.2]} 5. h3 {[%clk
0:02:52.5]} 5... f6 {[%clk 0:02:51.4]} 6. Nf3 {[%clk 0:02:51.4]} 6... Bf5 {[%clk
0:02:44.4]} 7. Bb5 {[%clk 0:02:49.3]} 7... a6 {[%clk 0:02:43.9]} 8. Ba4 {[%clk
0:02:49]} 8... g5 {[%clk 0:02:40.4]} 9. O-O {[%clk 0:02:43.6]} 9... e6 {[%clk
0:02:40.1]} 10. Re1 {[%clk 0:02:41.9]} 10... Qd7 {[%clk 0:02:35.3]} 11. Ne2
{[%clk 0:02:40.8]} 11... Bd6 {[%clk 0:02:32.7]} 12. Bb3 {[%clk 0:02:29.4]} 12...
Nge7 {[%clk 0:02:27.4]} 13. c4 {[%clk 0:02:22.3]} 13... O-O {[%clk 0:01:57.2]}
14. Nc3 {[%clk 0:02:00.4]} 14... dxc4 {[%clk 0:01:49.7]} 15. Bxc4 {[%clk
0:01:59.7]} 15... b5 {[%clk 0:01:50.2]} 16. Bb3 {[%clk 0:01:56.6]} 16... Na5
{[%clk 0:01:48.3]} 17. Bc2 {[%clk 0:01:55.2]} 17... Rad8 {[%clk 0:01:44.9]} 18.
Ne4 {[%clk 0:01:45.3]} 18... Bb4 {[%clk 0:01:24.7]} 19. Bd2 {[%clk 0:01:40.1]}
19... Bxd2 {[%clk 0:01:23.9]} 20. Qxd2 {[%clk 0:01:40.4]} 20... Nb7 {[%clk
0:01:24]} 21. a4 {[%clk 0:01:33.7]} 21... Bxe4 {[%clk 0:01:13.4]} 22. Rxe4
{[%clk 0:01:21.7]} 22... Nd6 {[%clk 0:01:13.5]} 23. Ree1 {[%clk 0:01:18.7]}
23... Nc4 {[%clk 0:01:12.8]} 24. Qe2 {[%clk 0:01:08.5]} 24... Nxb2 {[%clk
0:00:58.2]} 25. axb5 {[%clk 0:01:08.2]} 25... axb5 {[%clk 0:00:55.9]} 26. Ra6
{[%clk 0:01:02.1]} 26... Nc4 {[%clk 0:00:19.5]} 27. Rxe6 {[%clk 0:00:59.6]}
27... Nd5 {[%clk 0:00:14]} 28. Qe4 {[%clk 0:00:49.9]} 28... Na3 {[%clk
0:00:06.5]} 29. Bd3 {[%clk 0:00:38.4]} 29... Rf7 {[%clk 0:00:05.5]} 30. Qf5
{[%clk 0:00:28.7]} 30... Kg7 {[%clk 0:00:02.2]} 31. h4 {[%clk 0:00:28.9]} 31...
Nf4 {[%clk 0:00:02.1]} 32. Qxh7+ {[%clk 0:00:19.3]} 32... Kf8 {[%clk 0:00:01.6]}
33. Qh8# {[%clk 0:00:19.2]} 1-0

[Event "Early-Titled-Tuesday-Blitz-February-06-2024"]
[Site "Chess.com"]
[Date "2024.02.06"]
[Round "8"]
[White "shimastream"]
[Black "gmcorrales"]
[Result "0-1"]
[WhiteElo "3008"]
[BlackElo "2879"]
[TimeControl "180+1"]
[EndTime "9:28:11 PST"]
[Termination "gmcorrales won on time"]

1. e4 {[%clk 0:02:56.1]} 1... c5 {[%clk 0:02:59.5]} 2. d4 {[%clk 0:02:56.1]}
2... cxd4 {[%clk 0:02:59.7]} 3. Qxd4 {[%clk 0:02:57]} 3... Nc6 {[%clk
0:02:59.7]} 4. Qd3 {[%clk 0:02:57]} 4... g6 {[%clk 0:02:59.3]} 5. Nc3 {[%clk
0:02:56.7]} 5... Bg7 {[%clk 0:02:59.2]} 6. Nf3 {[%clk 0:02:57.3]} 6... d6 {[%clk
0:02:59.3]} 7. Be2 {[%clk 0:02:57.3]} 7... Nf6 {[%clk 0:02:59.9]} 8. O-O {[%clk
0:02:56.4]} 8... O-O {[%clk 0:03:00.4]} 9. Nd5 {[%clk 0:02:56.9]} 9... Nd7
{[%clk 0:02:57.9]} 10. c3 {[%clk 0:02:54.8]} 10... Nde5 {[%clk 0:02:56.9]} 11.
Nxe5 {[%clk 0:02:48]} 11... Nxe5 {[%clk 0:02:56.8]} 12. Qg3 {[%clk 0:02:29.9]}
12... e6 {[%clk 0:02:52.3]} 13. Nf4 {[%clk 0:02:15.3]} 13... Qb6 {[%clk
0:02:49.7]} 14. Qe3 {[%clk 0:02:09.7]} 14... Qxe3 {[%clk 0:02:47.8]} 15. Bxe3
{[%clk 0:02:09.5]} 15... b6 {[%clk 0:02:48.4]} 16. Rfd1 {[%clk 0:02:08.5]} 16...
Bb7 {[%clk 0:02:47.9]} 17. f3 {[%clk 0:02:08.8]} 17... Rfd8 {[%clk 0:02:47.3]}
18. a4 {[%clk 0:02:08.3]} 18... Nc6 {[%clk 0:02:27.4]} 19. Kf2 {[%clk
0:01:48.9]} 19... Kf8 {[%clk 0:02:26.9]} 20. g4 {[%clk 0:01:47]} 20... h6 {[%clk
0:02:26.8]} 21. h4 {[%clk 0:01:47.1]} 21... Ke7 {[%clk 0:02:27.3]} 22. Bc4
{[%clk 0:01:28.1]} 22... Bf6 {[%clk 0:02:26.5]} 23. Ng2 {[%clk 0:01:26.6]} 23...
g5 {[%clk 0:02:26.3]} 24. hxg5 {[%clk 0:01:16.5]} 24... hxg5 {[%clk 0:02:27.2]}
25. Ba2 {[%clk 0:01:15.6]} 25... Rh8 {[%clk 0:02:26.6]} 26. Rh1 {[%clk 0:01:15]}
26... Ne5 {[%clk 0:02:25.9]} 27. Rxh8 {[%clk 0:00:44.9]} 27... Rxh8 {[%clk
0:02:26.8]} 28. Bb1 {[%clk 0:00:38.9]} 28... Ba6 {[%clk 0:02:26.5]} 29. Bc2
{[%clk 0:00:29.2]} 29... Bd3 {[%clk 0:02:15]} 30. Bb3 {[%clk 0:00:17.7]} 30...
a5 {[%clk 0:02:09.4]} 31. Rg1 {[%clk 0:00:08.9]} 31... Rb8 {[%clk 0:02:04.2]}
32. Ra1 {[%clk 0:00:02.2]} 32... b5 {[%clk 0:02:02.2]} 33. Bc1 {[%clk
0:00:02.5]} 33... b4 {[%clk 0:02:01.2]} 34. cxb4 {[%clk 0:00:01.7]} 34... Rxb4
{[%clk 0:02:02.1]} 35. Bd1 {[%clk 0:00:02]} 35... Nc4 {[%clk 0:02:01.2]} 36. Ne3
{[%clk 0:00:02.6]} 36... Bd4 {[%clk 0:01:52]} 37. Ra2 {[%clk 0:00:02.3]} 37...
Nxb2 {[%clk 0:01:47.2]} 38. Bxb2 {[%clk 0:00:01.5]} 38... Rxb2+ {[%clk
0:01:42.4]} 39. Rxb2 {[%clk 0:00:01.6]} 39... Bxb2 {[%clk 0:01:43.3]} 40. Be2
{[%clk 0:00:02.3]} 40... Bb1 {[%clk 0:01:38.3]} 41. Nc4 {[%clk 0:00:02.6]} 41...
Bd4+ {[%clk 0:01:38.4]} 42. Ke1 {[%clk 0:00:02.7]} 42... Bc2 {[%clk 0:01:38.6]}
43. Kd2 {[%clk 0:00:01.9]} 43... Bxa4 {[%clk 0:01:38.6]} 44. Nxa5 {[%clk
0:00:02.6]} 44... Kf6 {[%clk 0:01:34.8]} 45. Nc4 {[%clk 0:00:02.5]} 45... Bc5
{[%clk 0:01:32.8]} 46. Ne3 {[%clk 0:00:02.6]} 46... Ke5 {[%clk 0:01:28.8]} 47.
Ng2 {[%clk 0:00:02.9]} 47... d5 {[%clk 0:01:23]} 48. exd5 {[%clk 0:00:03]} 48...
exd5 {[%clk 0:01:23.9]} 49. Bd1 {[%clk 0:00:03.5]} 49... Bb4+ {[%clk 0:01:23.7]}
50. Ke2 {[%clk 0:00:03.4]} 50... Bb5+ {[%clk 0:01:24]} 51. Kf2 {[%clk 0:00:04]}
51... Bc5+ {[%clk 0:01:23.6]} 52. Ke1 {[%clk 0:00:04]} 52... d4 {[%clk
0:01:23.1]} 53. Kd2 {[%clk 0:00:03.5]} 53... Bb4+ {[%clk 0:01:23]} 54. Kc2
{[%clk 0:00:03.9]} 54... d3+ {[%clk 0:01:23.9]} 55. Kb3 {[%clk 0:00:04.2]} 55...
Bd2 {[%clk 0:01:22.7]} 56. Kb2 {[%clk 0:00:04]} 56... Kd4 {[%clk 0:01:20.8]} 57.
Kb3 {[%clk 0:00:03.5]} 57... f6 {[%clk 0:01:20.8]} 58. Kb2 {[%clk 0:00:03.7]}
58... Bc4 {[%clk 0:01:20.9]} 59. Kb1 {[%clk 0:00:03.3]} 59... Kc3 {[%clk
0:01:20.4]} 60. f4 {[%clk 0:00:02.3]} 60... Bxf4 {[%clk 0:01:20]} 61. Ne1 {[%clk
0:00:01.7]} 61... Kd2 {[%clk 0:01:15.9]} 0-1

[Event "Early-Titled-Tuesday-Blitz-February-06-2024"]
[Site "Chess.com"]
[Date "2024.02.06"]
[Round "8"]
[White "Leonid_Starozhilov"]
[Black "guillembaches"]
[Result "1-0"]
[WhiteElo "2726"]
[BlackElo "2569"]
[TimeControl "180+1"]
[EndTime "9:28:11 PST"]
[Termination "Leonid_Starozhilov won on time"]

1. e4 {[%clk 0:03:00.9]} 1... c5 {[%clk 0:02:59.5]} 2. Nf3 {[%clk 0:03:01]} 2...
d6 {[%clk 0:02:58.4]} 3. Bb5+ {[%clk 0:03:01.3]} 3... Bd7 {[%clk 0:02:58.3]} 4.
c4 {[%clk 0:03:01.4]} 4... Nf6 {[%clk 0:02:57.6]} 5. Nc3 {[%clk 0:03:01.6]} 5...
g6 {[%clk 0:02:57.9]} 6. O-O {[%clk 0:03:01.3]} 6... Bg7 {[%clk 0:02:58.2]} 7.
d4 {[%clk 0:02:59.4]} 7... cxd4 {[%clk 0:02:58]} 8. Nxd4 {[%clk 0:03:00.3]} 8...
O-O {[%clk 0:02:57.6]} 9. h3 {[%clk 0:02:59.8]} 9... a6 {[%clk 0:02:53]} 10.
Bxd7 {[%clk 0:02:58]} 10... Nfxd7 {[%clk 0:02:52.5]} 11. Be3 {[%clk 0:02:56.3]}
11... Nc6 {[%clk 0:02:49.2]} 12. b3 {[%clk 0:02:50.6]} 12... Nc5 {[%clk
0:02:37]} 13. Rc1 {[%clk 0:02:49.5]} 13... Ne6 {[%clk 0:02:33.9]} 14. Nde2
{[%clk 0:02:19.7]} 14... Qa5 {[%clk 0:02:17.2]} 15. a4 {[%clk 0:01:53.5]} 15...
Rfc8 {[%clk 0:02:09.9]} 16. Nd5 {[%clk 0:01:51.3]} 16... Nc5 {[%clk 0:01:35.9]}
17. b4 {[%clk 0:01:27.8]} 17... Nxb4 {[%clk 0:01:32.8]} 18. Nxe7+ {[%clk
0:01:26.8]} 18... Kh8 {[%clk 0:01:32.6]} 19. Nxc8 {[%clk 0:01:27.6]} 19... Rxc8
{[%clk 0:01:31.7]} 20. Qxd6 {[%clk 0:01:15]} 20... Nbd3 {[%clk 0:01:24.5]} 21.
Rcd1 {[%clk 0:01:00.2]} 21... Rd8 {[%clk 0:01:05.6]} 22. Qe7 {[%clk 0:00:45.1]}
22... Rc8 {[%clk 0:00:55]} 23. Qxf7 {[%clk 0:00:36.9]} 23... Qxa4 {[%clk
0:00:55]} 24. Bd4 {[%clk 0:00:30.8]} 24... Bxd4 {[%clk 0:00:54]} 25. Nxd4 {[%clk
0:00:31.1]} 25... Qe8 {[%clk 0:00:45.7]} 26. Qf6+ {[%clk 0:00:26.8]} 26... Kg8
{[%clk 0:00:45.2]} 27. Nb3 {[%clk 0:00:15]} 27... Nxe4 {[%clk 0:00:35.2]} 28.
Qf3 {[%clk 0:00:12.8]} 28... Nb2 {[%clk 0:00:22.3]} 29. Rde1 {[%clk 0:00:12.2]}
29... Rxc4 {[%clk 0:00:22.2]} 30. Nd2 {[%clk 0:00:10.1]} 1-0

[Event "Early-Titled-Tuesday-Blitz-February-06-2024"]
[Site "Chess.com"]
[Date "2024.02.06"]
[Round "8"]
[White "mertfelin"]
[Black "Nick12772"]
[Result "1-0"]
[WhiteElo "2286"]
[BlackElo "2381"]
[TimeControl "180+1"]
[EndTime "9:28:11 PST"]
[Termination "mertfelin won by resignation"]

1. e4 {[%clk 0:03:00.9]} 1... e6 {[%clk 0:02:59.8]} 2. d4 {[%clk 0:03:01.2]}
2... d5 {[%clk 0:03:00.7]} 3. Nd2 {[%clk 0:03:01.7]} 3... Nf6 {[%clk 0:03:00.7]}
4. e5 {[%clk 0:03:02.2]} 4... Nfd7 {[%clk 0:03:01.4]} 5. Bd3 {[%clk 0:03:02.8]}
5... c5 {[%clk 0:03:02.3]} 6. c3 {[%clk 0:03:03.5]} 6... Nc6 {[%clk 0:03:03.2]}
7. Ne2 {[%clk 0:03:04.2]} 7... cxd4 {[%clk 0:03:03.8]} 8. cxd4 {[%clk
0:03:05.1]} 8... f6 {[%clk 0:03:03.7]} 9. exf6 {[%clk 0:03:06]} 9... Nxf6 {[%clk
0:03:04.5]} 10. O-O {[%clk 0:03:05.5]} 10... Bd6 {[%clk 0:03:05.1]} 11. Nf3
{[%clk 0:03:06.2]} 11... Qc7 {[%clk 0:03:05.6]} 12. h3 {[%clk 0:03:06.5]} 12...
O-O {[%clk 0:03:06]} 13. Be3 {[%clk 0:03:07.1]} 13... Bd7 {[%clk 0:03:04.3]} 14.
Nc3 {[%clk 0:02:57.7]} 14... a6 {[%clk 0:03:03.6]} 15. Re1 {[%clk 0:02:56.7]}
15... h6 {[%clk 0:02:52.4]} 16. Rc1 {[%clk 0:02:50.4]} 16... Qb6 {[%clk
0:02:49]} 17. Ne5 {[%clk 0:02:43.8]} 17... Rac8 {[%clk 0:02:41]} 18. Nxd7 {[%clk
0:02:39]} 18... Nxd7 {[%clk 0:02:40.1]} 19. Qg4 {[%clk 0:02:39.6]} 19... Rf6
{[%clk 0:02:27.1]} 20. Nxd5 {[%clk 0:02:30.8]} 20... exd5 {[%clk 0:02:22]} 21.
Qxd7 {[%clk 0:02:31.2]} 21... Rd8 {[%clk 0:02:11.1]} 22. Qg4 {[%clk 0:02:30.6]}
22... Qxb2 {[%clk 0:02:06.1]} 23. Rb1 {[%clk 0:02:20.9]} 23... Qc3 {[%clk
0:01:54.6]} 24. Red1 {[%clk 0:02:13]} 24... Nb4 {[%clk 0:01:45]} 25. Rbc1 {[%clk
0:01:55.3]} 25... Qa3 {[%clk 0:01:44.6]} 26. Bb1 {[%clk 0:01:53.4]} 26... Nc6
{[%clk 0:01:35.5]} 27. Qh5 {[%clk 0:01:41.5]} 27... Ne7 {[%clk 0:01:27.2]} 28.
Re1 {[%clk 0:01:34.7]} 28... Bb8 {[%clk 0:01:17.4]} 29. g4 {[%clk 0:01:21]}
29... Qd6 {[%clk 0:01:17.1]} 30. g5 {[%clk 0:01:06.1]} 30... Qh2+ {[%clk
0:01:12.3]} 31. Kf1 {[%clk 0:01:06.4]} 31... hxg5 {[%clk 0:00:49.9]} 32. Bh7+
{[%clk 0:00:27.5]} 32... Kf8 {[%clk 0:00:45.3]} 33. Ke2 {[%clk 0:00:28]} 33...
Nf5 {[%clk 0:00:30.3]} 34. Bxf5 {[%clk 0:00:26.5]} 34... Rxf5 {[%clk 0:00:30]}
35. Qh8+ {[%clk 0:00:25.6]} 35... Ke7 {[%clk 0:00:21.1]} 36. Qxg7+ {[%clk
0:00:25.8]} 36... Kd6 {[%clk 0:00:07.1]} 37. Qg6+ {[%clk 0:00:21.8]} 37... Ke7
{[%clk 0:00:03.8]} 38. Qxf5 {[%clk 0:00:22]} 1-0

[Event "Early-Titled-Tuesday-Blitz-February-06-2024"]
[Site "Chess.com"]
[Date "2024.02.06"]
[Round "8"]
[White "SujanaLohani"]
[Black "maurovargas01"]
[Result "1-0"]
[WhiteElo "2004"]
[BlackElo "1882"]
[TimeControl "180+1"]
[EndTime "9:28:12 PST"]
[Termination "SujanaLohani won on time"]

1. d4 {[%clk 0:03:00.9]} 1... d5 {[%clk 0:02:58.4]} 2. Nf3 {[%clk 0:03:01.8]}
2... Bg4 {[%clk 0:02:56.9]} 3. c4 {[%clk 0:03:02.7]} 3... e6 {[%clk 0:02:56.5]}
4. Ne5 {[%clk 0:03:02.3]} 4... Bf5 {[%clk 0:02:55.7]} 5. e3 {[%clk 0:03:01.4]}
5... f6 {[%clk 0:02:52.6]} 6. Nf3 {[%clk 0:03:00.8]} 6... c6 {[%clk 0:02:52.4]}
7. Nc3 {[%clk 0:02:55.2]} 7... Bd6 {[%clk 0:02:47.2]} 8. Qb3 {[%clk 0:02:54.6]}
8... Qc8 {[%clk 0:02:45.7]} 9. cxd5 {[%clk 0:02:45.7]} 9... exd5 {[%clk
0:02:44.3]} 10. Be2 {[%clk 0:02:43.7]} 10... Nd7 {[%clk 0:02:39.2]} 11. Bd2
{[%clk 0:02:43.4]} 11... Ne7 {[%clk 0:02:38.4]} 12. Rc1 {[%clk 0:02:36.6]} 12...
O-O {[%clk 0:02:38.1]} 13. h3 {[%clk 0:02:36]} 13... Be6 {[%clk 0:02:37.6]} 14.
Ne4 {[%clk 0:02:29]} 14... Bc7 {[%clk 0:02:21.2]} 15. Bb4 {[%clk 0:02:22.4]}
15... Re8 {[%clk 0:02:15.2]} 16. Nd6 {[%clk 0:02:18.6]} 16... Bxd6 {[%clk
0:02:15]} 17. Bxd6 {[%clk 0:02:19.5]} 17... Nf5 {[%clk 0:02:10.4]} 18. Bb4
{[%clk 0:02:18]} 18... Bf7 {[%clk 0:02:01.2]} 19. O-O {[%clk 0:02:17.3]} 19...
Qd8 {[%clk 0:01:42.8]} 20. Bd3 {[%clk 0:01:42.2]} 20... Bg6 {[%clk 0:01:21.8]}
21. Rfe1 {[%clk 0:01:35.4]} 21... Re6 {[%clk 0:00:51.7]} 22. Bd2 {[%clk
0:01:27.5]} 22... b5 {[%clk 0:00:41.7]} 23. Rxc6 {[%clk 0:01:22.2]} 23... Rxc6
{[%clk 0:00:28.7]} 24. Qxd5+ {[%clk 0:01:21.7]} 24... Kh8 {[%clk 0:00:28.9]} 25.
Qxc6 {[%clk 0:01:21.5]} 25... a6 {[%clk 0:00:19.9]} 26. Qc2 {[%clk 0:01:05.9]}
26... Rc8 {[%clk 0:00:18.5]} 27. Qb1 {[%clk 0:01:04.6]} 27... Ne7 {[%clk
0:00:17.6]} 28. Bxg6 {[%clk 0:01:03.6]} 28... Nxg6 {[%clk 0:00:17.6]} 29. Rc1
{[%clk 0:01:01.6]} 29... Nb6 {[%clk 0:00:14.2]} 30. b3 {[%clk 0:01:00]} 30...
Nd5 {[%clk 0:00:13.7]} 31. Qf5 {[%clk 0:00:39.4]} 31... Rxc1+ {[%clk 0:00:11.5]}
32. Bxc1 {[%clk 0:00:38.6]} 32... Nb4 {[%clk 0:00:09.6]} 33. a3 {[%clk
0:00:34.2]} 33... Nd3 {[%clk 0:00:04.9]} 34. Bd2 {[%clk 0:00:32.1]} 1-0

[Event "Early-Titled-Tuesday-Blitz-February-06-2024"]
[Site "Chess.com"]
[Date "2024.02.06"]
[Round "8"]
[White "Muracle"]
[Black "Arlo2024"]
[Result "0-1"]
[WhiteElo "2470"]
[BlackElo "2315"]
[TimeControl "180+1"]
[EndTime "9:28:14 PST"]
[Termination "Arlo2024 won by checkmate"]

1. Nf3 {[%clk 0:02:59.8]} 1... Nf6 {[%clk 0:02:59.5]} 2. b3 {[%clk 0:02:59.3]}
2... g6 {[%clk 0:02:56.9]} 3. Bb2 {[%clk 0:02:59.6]} 3... Bg7 {[%clk 0:02:57.6]}
4. g3 {[%clk 0:03:00.3]} 4... b6 {[%clk 0:02:57.6]} 5. Bg2 {[%clk 0:03:00.9]}
5... Bb7 {[%clk 0:02:58.2]} 6. O-O {[%clk 0:03:01.7]} 6... O-O {[%clk
0:02:58.6]} 7. d3 {[%clk 0:03:02.2]} 7... c5 {[%clk 0:02:59.1]} 8. Nbd2 {[%clk
0:03:02.6]} 8... d6 {[%clk 0:02:59.6]} 9. c4 {[%clk 0:03:03.1]} 9... Nbd7 {[%clk
0:02:59.3]} 10. e3 {[%clk 0:03:03.4]} 10... a6 {[%clk 0:02:57.2]} 11. a3 {[%clk
0:03:02.8]} 11... b5 {[%clk 0:02:56.7]} 12. Qc2 {[%clk 0:03:02.8]} 12... Qb6
{[%clk 0:02:55.4]} 13. Rfe1 {[%clk 0:03:00.2]} 13... Rfc8 {[%clk 0:02:54.8]} 14.
e4 {[%clk 0:02:54.7]} 14... Ne8 {[%clk 0:02:42.8]} 15. Bxg7 {[%clk 0:02:51.9]}
15... Nxg7 {[%clk 0:02:42.8]} 16. Nf1 {[%clk 0:02:52.1]} 16... e5 {[%clk
0:02:39.3]} 17. Ne3 {[%clk 0:02:48.6]} 17... Ne6 {[%clk 0:02:37.3]} 18. Reb1
{[%clk 0:02:42.2]} 18... Nb8 {[%clk 0:02:22.6]} 19. Qd2 {[%clk 0:02:32.6]} 19...
Nc6 {[%clk 0:02:18.3]} 20. Nd5 {[%clk 0:02:07.4]} 20... Qd8 {[%clk 0:02:18.2]}
21. Bh3 {[%clk 0:02:08]} 21... Ncd4 {[%clk 0:02:10.7]} 22. Nxd4 {[%clk
0:02:04.4]} 22... Nxd4 {[%clk 0:02:10.8]} 23. Qh6 {[%clk 0:01:52.7]} 23... Rcb8
{[%clk 0:01:58.6]} 24. Ne3 {[%clk 0:01:43.1]} 24... Qf6 {[%clk 0:01:46.7]} 25.
Ng4 {[%clk 0:01:34.9]} 25... Qg7 {[%clk 0:01:45.5]} 26. Qe3 {[%clk 0:01:01.1]}
26... h5 {[%clk 0:01:34.3]} 27. Nxe5 {[%clk 0:00:40.1]} 27... dxe5 {[%clk
0:01:26.7]} 28. Ra2 {[%clk 0:00:39.7]} 28... Bc8 {[%clk 0:01:19.7]} 29. Bxc8
{[%clk 0:00:36.1]} 29... Rxc8 {[%clk 0:01:19.1]} 30. f4 {[%clk 0:00:36.7]} 30...
Re8 {[%clk 0:01:05.2]} 31. Rf2 {[%clk 0:00:29.4]} 31... f5 {[%clk 0:00:58]} 32.
fxe5 {[%clk 0:00:26.1]} 32... Qxe5 {[%clk 0:00:55.2]} 33. Qg5 {[%clk 0:00:22]}
33... Kg7 {[%clk 0:00:53.4]} 34. Rbf1 {[%clk 0:00:19.1]} 34... Rf8 {[%clk
0:00:51.6]} 35. h3 {[%clk 0:00:02.1]} 35... Rae8 {[%clk 0:00:41.8]} 36. g4
{[%clk 0:00:01.8]} 36... Qg3+ {[%clk 0:00:38.3]} 37. Rg2 {[%clk 0:00:01.7]}
37... Ne2+ {[%clk 0:00:32.2]} 38. Kh1 {[%clk 0:00:01.8]} 38... Qxh3+ {[%clk
0:00:32.1]} 39. Rh2 {[%clk 0:00:02.3]} 39... Qxf1# {[%clk 0:00:32.1]} 0-1

[Event "Early-Titled-Tuesday-Blitz-February-06-2024"]
[Site "Chess.com"]
[Date "2024.02.06"]
[Round "8"]
[White "ClaudiaSof"]
[Black "Ruchess27"]
[Result "0-1"]
[WhiteElo "2273"]
[BlackElo "2459"]
[TimeControl "180+1"]
[EndTime "9:28:14 PST"]
[Termination "Ruchess27 won by resignation"]

1. d4 {[%clk 0:03:00.9]} 1... d5 {[%clk 0:02:59.6]} 2. Bf4 {[%clk 0:02:58.2]}
2... Nf6 {[%clk 0:02:58.6]} 3. e3 {[%clk 0:02:56.8]} 3... e6 {[%clk 0:02:58.8]}
4. Nd2 {[%clk 0:02:52.9]} 4... Bd6 {[%clk 0:02:59.1]} 5. Bg3 {[%clk 0:02:50.1]}
5... O-O {[%clk 0:02:58.7]} 6. Ngf3 {[%clk 0:02:48]} 6... c5 {[%clk 0:02:57.1]}
7. c3 {[%clk 0:02:45.8]} 7... Nc6 {[%clk 0:02:57.3]} 8. Bd3 {[%clk 0:02:43.8]}
8... b6 {[%clk 0:02:55]} 9. Ne5 {[%clk 0:02:38.3]} 9... Bb7 {[%clk 0:02:50.4]}
10. f4 {[%clk 0:02:37.1]} 10... Qc7 {[%clk 0:02:42.5]} 11. Bh4 {[%clk
0:02:32.2]} 11... Be7 {[%clk 0:02:09.7]} 12. Qf3 {[%clk 0:02:24.8]} 12... Rae8
{[%clk 0:01:54.6]} 13. g4 {[%clk 0:02:13.5]} 13... Nd7 {[%clk 0:01:23.9]} 14.
Bxe7 {[%clk 0:02:10.8]} 14... Nxe7 {[%clk 0:01:21.9]} 15. Qh3 {[%clk 0:02:08.8]}
15... f5 {[%clk 0:01:12.4]} 16. gxf5 {[%clk 0:01:54.1]} 16... Nxf5 {[%clk
0:01:09.6]} 17. Ndf3 {[%clk 0:01:31.2]} 17... Nf6 {[%clk 0:01:01.8]} 18. O-O-O
{[%clk 0:01:05.7]} 18... Nxe3 {[%clk 0:00:56.5]} 19. Ng5 {[%clk 0:00:58.4]}
19... Nf5 {[%clk 0:00:43.9]} 20. Nxe6 {[%clk 0:00:50.1]} 20... Rxe6 {[%clk
0:00:44.8]} 21. Bxf5 {[%clk 0:00:50.1]} 21... Re7 {[%clk 0:00:41.7]} 22. Kb1
{[%clk 0:00:41.3]} 22... Bc8 {[%clk 0:00:37.1]} 23. Bxc8 {[%clk 0:00:37.6]}
23... Rxc8 {[%clk 0:00:36.9]} 24. Rc1 {[%clk 0:00:28.5]} 24... Ne4 {[%clk
0:00:35.5]} 25. Qe3 {[%clk 0:00:20.5]} 25... a5 {[%clk 0:00:26.3]} 26. Rhg1
{[%clk 0:00:19.9]} 26... a4 {[%clk 0:00:23.2]} 27. a3 {[%clk 0:00:19.2]} 27...
Qd6 {[%clk 0:00:18]} 28. f5 {[%clk 0:00:18.1]} 28... Qf6 {[%clk 0:00:16.9]} 29.
Qf4 {[%clk 0:00:16.6]} 29... Rf8 {[%clk 0:00:15]} 30. Rcf1 {[%clk 0:00:14.4]}
30... b5 {[%clk 0:00:09]} 31. dxc5 {[%clk 0:00:12.9]} 31... Rxe5 {[%clk
0:00:07]} 0-1

[Event "Early-Titled-Tuesday-Blitz-February-06-2024"]
[Site "Chess.com"]
[Date "2024.02.06"]
[Round "8"]
[White "Rurep26"]
[Black "Maxfan2008"]
[Result "0-1"]
[WhiteElo "2746"]
[BlackElo "2567"]
[TimeControl "180+1"]
[EndTime "9:28:16 PST"]
[Termination "Maxfan2008 won by resignation"]

1. d4 {[%clk 0:03:00.9]} 1... d5 {[%clk 0:02:59.7]} 2. Bf4 {[%clk 0:02:53.7]}
2... Nf6 {[%clk 0:02:59.5]} 3. e3 {[%clk 0:02:53.7]} 3... c5 {[%clk 0:02:59.8]}
4. Nc3 {[%clk 0:02:53.9]} 4... cxd4 {[%clk 0:02:56.6]} 5. exd4 {[%clk
0:02:54.8]} 5... a6 {[%clk 0:02:56.6]} 6. Nf3 {[%clk 0:02:55.3]} 6... Bg4 {[%clk
0:02:55.9]} 7. Be2 {[%clk 0:02:54.8]} 7... Nc6 {[%clk 0:02:56]} 8. Ne5 {[%clk
0:02:55.3]} 8... Bxe2 {[%clk 0:02:52]} 9. Nxe2 {[%clk 0:02:56.2]} 9... e6 {[%clk
0:02:51]} 10. O-O {[%clk 0:02:52.8]} 10... Be7 {[%clk 0:02:50.1]} 11. Ng3 {[%clk
0:02:50.8]} 11... O-O {[%clk 0:02:49.9]} 12. c3 {[%clk 0:02:50.2]} 12... Rc8
{[%clk 0:02:47.7]} 13. Re1 {[%clk 0:02:46.1]} 13... b5 {[%clk 0:02:47]} 14. a3
{[%clk 0:02:45.3]} 14... a5 {[%clk 0:02:44.9]} 15. Re3 {[%clk 0:02:40.3]} 15...
Qb6 {[%clk 0:02:43.7]} 16. Bg5 {[%clk 0:02:39.1]} 16... Qb7 {[%clk 0:02:27.1]}
17. Bxf6 {[%clk 0:02:31.2]} 17... Bxf6 {[%clk 0:02:26.8]} 18. Nh5 {[%clk
0:02:31.3]} 18... Bg5 {[%clk 0:02:02.1]} 19. Rg3 {[%clk 0:02:27.6]} 19... f6
{[%clk 0:01:59.4]} 20. Nd3 {[%clk 0:02:21.2]} 20... Kh8 {[%clk 0:01:48.5]} 21.
Qg4 {[%clk 0:02:09]} 21... Qf7 {[%clk 0:01:42.5]} 22. Nc5 {[%clk 0:02:04.4]}
22... Rce8 {[%clk 0:01:41.6]} 23. h4 {[%clk 0:01:58.5]} 23... Bh6 {[%clk
0:01:40.8]} 24. Nf4 {[%clk 0:01:55]} 24... e5 {[%clk 0:01:24.4]} 25. Nfd3 {[%clk
0:01:38.8]} 25... f5 {[%clk 0:01:18.3]} 26. Qd1 {[%clk 0:01:17.4]} 26... exd4
{[%clk 0:01:12.9]} 27. f4 {[%clk 0:01:12.3]} 27... dxc3 {[%clk 0:01:05.2]} 28.
bxc3 {[%clk 0:01:13.2]} 28... d4 {[%clk 0:01:00.2]} 29. cxd4 {[%clk 0:01:10.2]}
29... Nxd4 {[%clk 0:01:00.2]} 30. Ne5 {[%clk 0:01:10.6]} 30... Qd5 {[%clk
0:00:53.8]} 31. Ned7 {[%clk 0:00:48.5]} 31... Ne2+ {[%clk 0:00:42]} 32. Kf2
{[%clk 0:00:37.2]} 32... Qc4 {[%clk 0:00:16.4]} 33. Qd3 {[%clk 0:00:21.9]} 33...
Qxf4+ {[%clk 0:00:15.6]} 34. Rf3 {[%clk 0:00:13.6]} 34... Qxh4+ {[%clk
0:00:15.4]} 35. Rg3 {[%clk 0:00:10.4]} 0-1